bitfinex/quotes_ETHUSD_20240810
["timestamp","ask_amount","ask_price","bid_price","bid_amount"]
[1723249012133,3.83701,2606.2,2605.6,3.83779]
[1723249012490,3.83701,2606.2,2605.6,3.83776]
[1723249012491,3.837,2606.2,2605.6,3.83776]
[1723249012693,4.853051,2606.2,2605.6,3.83776]
[1723249014216,3.83725,2606.1,2605.4,3.83807]
[1723249014439,3.83725,2606.1,2605.5,0.55]
[1723249014760,3.8373,2606.0,2605.5,0.55]
[1723249015056,3.83725,2606.1,2605.5,0.55]
[1723249015223,3.8374,2606.0,2605.5,0.55]
[1723249015407,4.5712401,2606.1,2605.5,0.55]
[1723249015810,4.5712401,2606.1,2605.2,6.2085]
[1723249015811,3.83759,2605.8,2605.2,3.8384]
[1723249016018,3.83753,2605.9,2605.3,4.38832]
[1723249016251,3.83761,2605.8,2605.3,0.55]
[1723249016456,3.83753,2605.9,2605.3,0.55]
[1723249016943,3.83764,2605.8,2605.3,0.55]
[1723249018171,7.67507,2605.9,2605.3,4.38832]
[1723249018360,0.7339901,2606.1,2605.5,3.83801]
[1723249018557,6.83708,2606.2,2605.5,3.83801]
[1723249018852,2.4866,2606.3,2606.0,3.83725]
[1723249019060,3.83648,2606.6,2606.0,3.83725]
[1723249019061,3.83657,2606.5,2606.0,3.83725]
[1723249019262,3.83648,2606.6,2606.0,3.8372]
[1723249019459,6.10155,2606.7,2606.1,3.83703]
[1723249019667,6.10155,2606.7,2606.0,4.22092]
[1723249019668,3.83652,2606.6,2606.0,4.22092]
[1723249019828,2.2652,2606.7,2606.2,3.83695]
[1723249020029,2.2652,2606.7,2606.3,0.55]
[1723249020347,1.07759658,2607.7,2606.4,2.4569]
[1723249020648,3.83461,2607.9,2607.3,3.83537]
[1723249020844,3.83461,2607.9,2607.2,3.83552]
[1723249021037,3.83461,2607.9,2607.1,3.83563]
[1723249021038,3.83465,2607.8,2607.3,0.55]
[1723249021435,0.993406,2607.9,2607.2,4.38553]
[1723249021671,0.993406,2607.9,2607.3,3.83536]
[1723249021821,2.2652,2608.1,2607.2,0.55]
[1723249022065,3.83479,2607.7,2607.2,0.55]
[1723249022588,3.83494,2607.6,2606.9,6.29273]
[1723249022910,3.83494,2607.6,2607.0,0.55]
[1723249023116,2.2652,2608.1,2607.1,3.83555]
[1723249023117,3.83482,2607.7,2607.1,3.83555]
[1723249023410,7.66974,2607.7,2607.1,3.83555]
[1723249023617,3.0,2607.9,2607.0,0.55]
[1723249023832,0.1,2608.6,2607.0,0.55]
[1723249023833,2.2652,2608.5,2607.1,2.48655254]
[1723249023965,3.83357,2608.6,2607.9,3.83449]
[1723249024165,3.83385,2608.4,2607.5,7.67]
[1723249024408,3.83461,2607.9,2607.3,3.83527]
[1723249024562,3.83438,2608.0,2607.4,0.55]
[1723249024764,3.83438,2608.0,2607.5,3.83506]
[1723249024967,6.09869,2608.6,2607.9,3.83439]
[1723249025205,6.09869,2608.6,2607.9,7.66878]
[1723249025413,6.09869,2608.6,2607.9,3.83439]
[1723249025619,3.83377,2608.4,2607.7,7.66939]
[1723249025844,3.0,2608.3,2607.8,0.55]
[1723249026048,3.8343,2608.1,2607.4,0.739217]
[1723249026353,7.66862,2608.1,2607.4,4.574347]
[1723249026550,7.66862,2608.1,2607.5,0.4574347]
[1723249027345,3.8343,2608.1,2607.5,0.4574347]
[1723249027524,3.83447,2608.0,2607.5,0.4574347]
[1723249028509,3.83451,2607.9,2607.5,0.4574347]
[1723249028912,3.83489,2607.7,2607.0,3.83569]
[1723249029137,3.83489,2607.7,2607.1,0.55]
[1723249029720,3.83468,2607.8,2607.2,3.83551]
[1723249029957,6.09969,2608.0,2607.3,4.38535]
[1723249030114,3.83459,2607.9,2607.3,0.55]
[1723249030316,7.6692,2607.9,2607.3,0.55]
[1723249030547,3.83467,2607.8,2607.3,0.55]
[1723249030846,3.83494,2607.7,2606.9,2.4569]
[1723249031049,3.83494,2607.7,2607.1,3.83566]
[1723249031208,3.83495,2607.6,2607.0,4.38569]
[1723249031415,3.83479,2607.7,2607.0,1.617863]
[1723249031655,3.83516,2607.5,2607.0,1.617863]
[1723249032023,3.83555,2607.2,2606.6,6.29319]
[1723249032176,3.83547,2607.3,2606.6,3.83629]
[1723249032375,3.83547,2607.3,2606.7,0.383629]
[1723249032863,3.8357,2607.1,2606.7,0.383629]
[1723249033453,3.83547,2607.3,2606.8,0.55]
[1723249033696,7.67098,2607.3,2606.8,0.55]
[1723249033900,2.2652,2607.4,2606.8,0.55]
[1723249034191,3.83592,2607.0,2606.4,11.3266]
[1723249034759,3.83598,2606.9,2606.4,11.3266]
[1723249034960,3.83598,2606.9,2606.4,7.49]
[1723249035388,3.83636,2606.7,2606.5,0.55]
[1723249035598,3.83636,2606.7,2606.4,0.55]
[1723249035795,3.83636,2606.7,2606.2,0.55]
[1723249036269,3.83601,2606.9,2606.2,4.387]
[1723249036482,7.67208,2606.9,2606.3,3.83683]
[1723249036684,3.83601,2606.9,2606.4,0.55]
[1723249037116,2.2652,2607.4,2606.8,3.83601]
[1723249037261,3.83494,2607.6,2607.0,3.83573]
[1723249037758,3.83489,2607.7,2607.1,0.55]
[1723249037980,6.09993,2607.8,2607.1,0.55]
[1723249038164,6.55401627,2608.2,2607.2,2.4109]
[1723249038479,6.15276,2608.2,2607.4,3.83514]
[1723249038675,3.83383,2608.4,2607.7,3.8347]
[1723249038880,7.6677,2608.4,2607.7,3.8347]
[1723249039184,3.83383,2608.4,2607.8,3.83462]
[1723249039501,3.83383,2608.4,2606.9,3.8359]
[1723249039502,3.83518,2607.5,2606.9,3.8359]
[1723249039810,3.83537,2607.4,2606.8,2.4109]
[1723249040105,3.83539,2607.3,2606.8,2.4109]
[1723249040398,7.67033,2607.5,2606.8,3.83602]
[1723249040599,7.67034,2607.5,2606.8,3.83602]
[1723249040820,7.67034,2607.5,2606.5,5.4109]
[1723249040821,3.83549,2607.3,2606.5,9.24736]
[1723249040992,3.83549,2607.3,2606.5,2.4109]
[1723249041192,3.83549,2607.3,2606.6,0.24109]
[1723249041412,3.83549,2607.3,2606.6,4.07739]
[1723249041699,3.83564,2607.2,2606.6,4.07739]
[1723249042078,3.83568,2607.1,2606.6,4.07739]
[1723249042325,3.83568,2607.1,2606.6,0.24109]
[1723249042522,3.836,2606.9,2606.2,6.24789]
[1723249042818,2.3186,2607.1,2606.4,3.8367]
[1723249043006,0.23186,2607.0,2606.4,3.8367]
[1723249043201,2.3186,2607.1,2606.4,3.8367]
[1723249043533,6.15437,2607.1,2606.5,3.83647]
[1723249043712,6.15437,2607.1,2606.4,3.8367]
[1723249043713,3.83591,2607.0,2606.4,3.8367]
[1723249044026,3.83598,2606.9,2606.5,0.55]
[1723249044184,3.83635,2606.7,2606.0,11.32724]
[1723249044385,3.83635,2606.7,2606.1,3.83711]
[1723249044946,3.836,2606.9,2606.1,3.83711]
[1723249044947,3.836,2606.9,2606.3,3.83681]
[1723249045917,3.836,2606.9,2606.3,3.83677]
[1723249046123,3.8363,2606.7,2606.3,0.767383]
[1723249046317,3.8363,2606.7,2606.1,3.83706]
[1723249046517,3.83602,2606.9,2606.1,3.83706]
[1723249046518,3.83602,2606.9,2606.2,0.55]
[1723249046718,3.83602,2606.9,2606.3,3.83682]
[1723249047055,9.99017,2607.1,2606.5,3.83642]
[1723249047346,3.83583,2607.0,2606.5,3.83642]
[1723249047507,9.99012,2607.1,2606.5,3.83642]
[1723249047708,9.99012,2607.1,2606.5,4.6859818]
[1723249047709,6.15435,2607.1,2606.5,4.6859818]
[1723249048033,3.0,2607.3,2606.2,0.55]
[1723249048246,3.0,2607.3,2606.1,8.22408]
[1723249048247,3.83616,2606.8,2606.1,8.22408]
[1723249048447,3.83616,2606.8,2606.1,4.38703]
[1723249048652,3.83588,2607.0,2606.3,3.83674]
[1723249048875,3.83588,2607.0,2606.4,0.55]
[1723249049156,0.383456,2607.8,2606.4,0.55]
[1723249049157,3.83406,2608.2,2607.4,3.83522]
[1723249049372,2.3186,2608.6,2606.9,7.6959]
[1723249049373,3.83405,2608.3,2607.6,3.83484]
[1723249049520,3.83402,2608.3,2607.7,4.38479]
[1723249049721,3.83371,2608.5,2607.8,3.83452]
[1723249049954,2.3186,2608.6,2607.9,0.02666779]
[1723249049955,3.83379,2608.4,2607.9,0.02666779]
[1723249050170,3.83416,2608.2,2607.9,0.55]
[1723249050316,3.83416,2608.2,2607.7,0.55]
[1723249051224,3.83344,2608.7,2608.0,3.83424]
[1723249051549,3.83344,2608.7,2608.1,4.84421016]
[1723249051729,3.83344,2608.7,2608.1,4.46078616]
[1723249051933,3.83309,2608.9,2608.1,0.62667616]
[1723249052138,3.83309,2608.9,2608.2,3.83394]
[1723249052320,3.83329,2608.8,2608.3,0.55]
[1723249052526,0.383329,2608.7,2608.2,3.83403]
[1723249052772,3.83294,2609.0,2608.3,0.62667583]
[1723249053043,7.66594,2609.0,2608.4,3.83376]
[1723249053248,3.83294,2609.0,2608.5,0.55]
[1723249053452,0.6007523,2609.6,2608.6,6.24433]
[1723249053637,0.40102951,2609.7,2609.2,3.8325]
[1723249053859,3.83159,2609.9,2609.2,3.83247]
[1723249054019,3.83159,2609.9,2609.3,0.55]
[1723249054434,3.83129,2610.1,2609.3,0.55]
[1723249054435,3.83152,2610.0,2609.3,0.55]
[1723249054632,3.83129,2610.1,2609.4,7.66446]
[1723249054921,3.83129,2610.1,2609.5,3.83205]
[1723249055148,6.14961,2610.3,2609.6,5.148404]
[1723249055464,3.83073,2610.5,2609.8,3.83156]
[1723249055644,3.83073,2610.5,2609.9,3.83153]
[1723249055852,3.83073,2610.5,2609.9,3.83149]
[1723249056052,3.83073,2610.5,2609.9,0.766305]
[1723249056252,3.83094,2610.4,2609.9,0.766305]
[1723249056653,3.831,2610.3,2609.9,0.766305]
[1723249057533,3.0,2610.6,2609.6,0.55]
[1723249057729,2.3186,2610.8,2609.5,0.55]
[1723249057730,5.3186,2610.8,2609.5,0.55]
[1723249057936,3.83168,2609.9,2609.2,0.383247]
[1723249058130,0.383168,2609.8,2609.0,3.83277]
[1723249058355,3.83168,2609.9,2609.0,3.83277]
[1723249058829,2.3186,2610.1,2609.0,3.83277]
[1723249059040,3.83161,2609.9,2609.0,3.90947247]
[1723249059398,3.83176,2609.8,2609.2,3.83245]
[1723249059875,3.8319,2609.7,2609.1,0.63203725]
[1723249060179,6.1499,2610.1,2609.4,3.83228]
[1723249060335,6.1499,2610.1,2609.1,7.66533]
[1723249060336,3.83166,2609.9,2609.1,7.66533]
[1723249060669,3.83166,2609.9,2609.2,4.38256]
[1723249060878,3.83184,2609.8,2609.2,0.55]
[1723249061171,3.83171,2609.8,2609.2,0.55]
[1723249061369,3.83171,2609.8,2609.2,4.38245]
[1723249061572,3.83151,2610.0,2609.3,8.4939096]
[1723249061786,9.98133,2610.1,2609.5,3.83213]
[1723249062076,3.83151,2610.0,2609.3,4.6614996]
[1723249062466,6.14993,2610.1,2609.4,4.36101429]
[1723249062677,3.83143,2610.0,2609.4,4.36101429]
[1723249063995,6.14993,2610.1,2609.4,0.52881429]
[1723249063996,3.83156,2609.9,2609.4,0.52881429]
[1723249064296,3.83156,2609.9,2609.3,3.8324]
[1723249064659,3.83156,2609.9,2609.2,4.38255]
[1723249064989,3.83219,2609.5,2608.9,2.4109]
[1723249065197,3.83253,2609.3,2608.7,7.49]
[1723249065904,2.3272,2609.6,2608.7,7.49]
[1723249065905,3.8327,2609.2,2608.7,7.49]
[1723249066052,3.8327,2609.2,2608.6,3.83337]
[1723249066603,3.83234,2609.4,2608.7,3.8333]
[1723249066888,3.0,2609.3,2608.8,3.83309]
[1723249067139,3.0,2609.3,2608.8,3.83307]
[1723249067268,3.0,2609.4,2608.9,3.83292]
[1723249068293,3.0,2609.4,2608.8,3.83307]
[1723249068591,3.0,2609.5,2609.0,3.83285]
[1723249068890,6.15926,2609.6,2609.1,0.55]
[1723249069654,3.83219,2609.5,2609.1,0.55]
[1723249069854,3.83219,2609.5,2608.9,0.55]
[1723249069855,3.83261,2609.2,2608.9,0.55]
[1723249070088,3.83261,2609.2,2608.6,7.66683]
[1723249070089,3.83261,2609.2,2608.7,0.55]
[1723249070800,0.999145,2609.5,2608.7,0.55]
[1723249070801,4.23214665,2610.1,2609.1,6.26413]
[1723249071016,4.23214665,2610.1,2609.6,3.8319]
[1723249071017,0.40087665,2610.1,2609.6,3.8319]
[1723249071183,0.40087665,2610.1,2609.7,0.55]
[1723249071388,3.83112,2610.2,2609.7,4.38181]
[1723249071800,3.83085,2610.4,2609.7,4.38181]
[1723249072121,7.66179,2610.4,2609.7,4.38181]
[1723249072275,3.831,2610.3,2609.7,5.203181]
[1723249074009,3.83085,2610.4,2609.8,3.83171]
[1723249074213,7.66178,2610.4,2609.9,0.55]
[1723249074372,3.83105,2610.3,2609.9,0.55]
[1723249074575,3.83105,2610.3,2609.8,0.55]
[1723249074816,3.83094,2610.4,2609.8,0.55]
[1723249075577,3.83127,2610.1,2609.8,0.55]
[1723249075806,3.83127,2610.1,2609.5,3.83208]
[1723249075807,3.83127,2610.1,2609.6,4.38194]
[1723249076013,3.83127,2610.1,2609.7,0.821402]
[1723249076228,3.83127,2610.1,2609.8,0.55]
[1723249076394,3.8318,2609.8,2609.2,0.626413]
[1723249076917,3.0,2610.2,2609.2,0.626413]
[1723249076918,3.0,2610.2,2609.3,0.05011794]
[1723249077130,3.83073,2610.5,2609.3,4.19332018]
[1723249077414,3.83151,2610.0,2609.3,7.97546309]
[1723249077613,3.83156,2609.9,2609.3,7.97546309]
[1723249077915,3.83156,2609.9,2609.4,0.79754631]
[1723249078115,3.83156,2609.9,2609.5,0.55]
[1723249078116,3.83188,2609.7,2609.5,0.55]
[1723249078283,5.4356,2610.0,2608.3,5.285]
[1723249078487,3.83226,2609.5,2608.9,3.83303]
[1723249078687,3.83225,2609.5,2608.9,4.599662]
[1723249078915,7.6645,2609.5,2608.9,4.599662]
[1723249079110,3.83245,2609.3,2608.9,0.766632]
[1723249079322,7.66505,2609.3,2608.6,3.83338]
[1723249079527,7.66505,2609.3,2608.7,0.76669]
[1723249079725,7.66445,2609.5,2608.8,3.83306]
[1723249079923,3.83219,2609.5,2608.8,3.83306]
[1723249080434,7.66502,2609.3,2608.7,3.83323]
[1723249080606,3.0,2609.6,2608.8,0.55]
[1723249080805,7.66568,2609.1,2608.6,0.55]
[1723249081125,3.0,2609.0,2607.7,2.2867]
[1723249081324,3.83356,2608.6,2607.9,3.8344]
[1723249081527,3.83356,2608.6,2608.0,0.38344]
[1723249081834,3.83356,2608.6,2608.0,4.21772]
[1723249082178,3.3,2609.0,2608.0,4.21772]
[1723249082179,3.83376,2608.4,2608.0,0.38344]
[1723249082346,3.8339,2608.4,2607.7,6.12135]
[1723249082698,3.83415,2608.2,2607.7,2.2867]
[1723249082895,3.83415,2608.2,2607.8,0.612155]
[1723249083296,3.8342,2608.1,2607.8,0.612155]
[1723249083527,3.8342,2608.1,2607.7,2.2867]
[1723249083736,3.8342,2608.1,2607.5,3.83497]
[1723249084233,7.66852,2608.1,2607.5,3.83497]
[1723249084435,3.8345,2607.9,2607.4,2.2867]
[1723249084635,0.1904039,2609.3,2607.9,3.83444]
[1723249084836,7.66425,2609.6,2608.9,3.83292]
[1723249085032,3.83212,2609.6,2608.7,2.2867]
[1723249085239,3.83236,2609.4,2608.7,2.52049067]
[1723249085436,7.66477,2609.4,2608.7,2.52049067]
[1723249085644,6.26736,2609.8,2608.8,0.02627747]
[1723249085815,3.8321,2609.6,2609.0,3.83276]
[1723249086022,4.07552,2609.7,2609.1,0.55]
[1723249086253,3.83196,2609.7,2609.1,0.55]
[1723249086546,3.83196,2609.7,2609.2,3.83258]
[1723249086707,3.83196,2609.7,2609.3,0.55]
[1723249087048,3.83196,2609.7,2609.1,4.38272]
[1723249087351,3.83196,2609.7,2609.1,4.820992]
[1723249087532,2.4356,2609.8,2609.2,3.83256]
[1723249087749,3.8316,2609.9,2609.3,4.38244]
[1723249087912,3.8316,2609.9,2609.1,4.820912]
[1723249088433,3.8316,2609.9,2609.3,3.83244]
[1723249088764,3.8316,2609.9,2609.4,4.38226]
[1723249088937,3.8316,2609.9,2609.4,0.55]
[1723249088938,3.0,2609.8,2609.4,0.55]
[1723249089114,3.8316,2609.9,2609.4,0.55]
[1723249089453,3.83085,2610.4,2609.8,3.83157]
[1723249089697,3.83085,2610.4,2609.9,0.55]
[1723249090144,6.26637,2610.5,2609.9,0.55]
[1723249090449,3.83073,2610.5,2609.9,0.55]
[1723249090748,3.83091,2610.4,2609.9,0.55]
[1723249092420,3.83099,2610.3,2609.9,0.55]
[1723249092860,3.83073,2610.5,2609.9,0.55]
[1723249093068,3.0,2610.4,2609.9,0.55]
[1723249093957,3.83062,2610.6,2610.0,3.8314]
[1723249094134,3.0,2610.5,2610.1,0.55]
[1723249094658,3.83077,2610.5,2610.1,0.55]
[1723249094871,3.83077,2610.5,2610.0,0.55]
[1723249095217,2.4356,2610.4,2609.4,3.83219]
[1723249095422,3.8313,2610.1,2609.5,3.83209]
[1723249095960,3.8313,2610.1,2609.4,3.83219]
[1723249095961,3.8313,2610.1,2609.4,7.66439]
[1723249096158,3.8313,2610.1,2609.5,3.83213]
[1723249096355,3.83128,2610.1,2609.4,8.047589]
[1723249096567,3.83152,2610.0,2609.5,0.55]
[1723249096731,3.83118,2610.2,2609.5,4.38215]
[1723249096933,3.83118,2610.2,2609.6,3.8319]
[1723249097150,3.83118,2610.2,2609.7,0.55]
[1723249097386,3.83144,2610.0,2609.7,0.55]
[1723249097700,3.83144,2610.0,2609.6,0.55]
[1723249097869,3.83144,2610.0,2609.5,0.55]
[1723249098796,3.83144,2610.0,2609.5,4.38214]
[1723249100185,3.83118,2610.2,2609.5,4.38204]
[1723249100493,3.83127,2610.1,2609.5,4.38204]
[1723249100893,3.83127,2610.1,2609.5,8.2141]
[1723249101206,3.83098,2610.3,2609.6,3.832]
[1723249101384,3.83098,2610.3,2609.7,0.55]
[1723249101574,3.0,2610.2,2609.7,0.55]
[1723249101778,3.0,2610.2,2609.8,3.8316]
[1723249102092,6.83083,2610.4,2609.9,0.55]
[1723249102291,2.3858,2610.8,2610.1,3.83125]
[1723249102292,6.21618,2610.8,2610.1,3.83125]
[1723249102495,3.83016,2610.9,2610.2,4.38104]
[1723249102702,3.83033,2610.8,2610.2,4.38104]
[1723249103798,3.0,2610.7,2610.2,4.38104]
[1723249104157,6.83042,2610.7,2610.2,0.55]
[1723249104362,3.83056,2610.6,2610.2,0.55]
[1723249104563,3.83069,2610.5,2609.8,3.83171]
[1723249104772,3.83069,2610.5,2609.7,6.24547]
[1723249104773,3.83098,2610.3,2609.7,6.24546]
[1723249104974,3.83098,2610.3,2609.8,3.83162]
[1723249105196,3.0,2610.7,2610.1,3.83126]
[1723249105416,3.0,2610.7,2610.2,4.214156]
[1723249105631,3.83053,2610.6,2610.1,3.83126]
[1723249105778,6.83048,2610.7,2610.1,3.83126]
[1723249105982,6.83048,2610.7,2610.2,4.38108]
[1723249106177,3.83055,2610.6,2610.2,0.55]
[1723249106398,6.83048,2610.7,2610.2,0.55]
[1723249106797,10.661,2610.7,2610.2,0.55]
[1723249107010,3.83055,2610.6,2610.2,0.55]
[1723249107212,7.89658,2610.7,2610.2,0.55]
[1723249107388,3.0,2610.7,2610.2,0.55]
[1723249107588,6.83043,2610.7,2610.2,0.55]
[1723249107918,0.60039211,2611.1,2610.9,3.83006]
[1723249108121,0.1260886,2611.3,2611.0,6.79365]
[1723249108439,0.1260886,2611.3,2611.0,2.9637]
[1723249108926,0.1260886,2611.3,2611.0,0.55]
[1723249109441,0.1260886,2611.3,2611.0,4.37984]
[1723249109597,0.1260886,2611.3,2611.0,0.55]
[1723249110418,3.8298,2611.1,2611.0,0.55]
[1723249110591,4.22538886,2611.1,2610.4,3.83068]
[1723249110782,3.8298,2611.1,2610.5,3.83068]
[1723249111230,3.8298,2611.1,2610.4,3.83068]
[1723249111523,3.83003,2611.0,2610.3,2.4137]
[1723249111725,3.83026,2610.8,2610.3,6.24467]
[1723249111908,3.83043,2610.7,2610.3,2.4137]
[1723249112320,4.213033,2611.0,2610.3,2.4137]
[1723249112526,3.83024,2610.8,2610.3,6.24465]
[1723249112834,3.83018,2610.9,2610.3,6.24455]
[1723249113236,3.83035,2610.8,2610.3,2.4137]
[1723249113440,3.83002,2611.0,2610.4,0.55]
[1723249113594,3.83039,2610.8,2610.4,0.55]
[1723249114531,3.83062,2610.6,2610.4,0.55]
[1723249114713,3.83068,2610.5,2610.0,2.4137]
[1723249115034,7.66093,2610.7,2610.0,6.24504]
[1723249115193,3.8304,2610.7,2610.0,10.07632]
[1723249115392,2.3858,2610.9,2610.0,3.421332]
[1723249115698,3.83024,2610.8,2610.2,3.83102]
[1723249116232,3.83024,2610.8,2610.3,0.55]
[1723249116392,3.83024,2610.8,2610.3,4.38095]
[1723249116590,3.83024,2610.8,2610.3,0.55]
[1723249117345,7.66058,2610.8,2610.3,0.55]
[1723249117510,3.83024,2610.8,2610.3,0.55]
[1723249118048,3.8301,2610.9,2610.4,3.83082]
[1723249118200,3.82984,2611.1,2610.5,4.38055]
[1723249118552,3.0,2611.2,2610.9,3.83007]
[1723249118832,0.1260886,2611.3,2611.0,0.55]
[1723249119036,0.1260886,2611.3,2611.0,3.82994]
[1723249119196,0.1260886,2611.3,2611.1,0.55]
[1723249119528,0.1260886,2611.3,2611.1,4.3798]
[1723249119896,0.1260886,2611.3,2611.1,4.37971]
[1723249120096,0.1260886,2611.3,2611.2,3.82965]
[1723249120297,0.1260886,2611.3,2611.2,4.37965]
[1723249120522,0.1260886,2611.3,2611.2,0.55]
[1723249120899,0.1260886,2611.3,2611.2,4.37965]
[1723249121328,0.1260886,2611.3,2611.2,10.6550885]
[1723249121521,0.1260886,2611.3,2611.2,11.76439445]
[1723249122216,0.1260886,2611.3,2611.2,7.93474445]
[1723249122533,0.1260886,2611.3,2611.2,0.55]
[1723249123038,0.1260886,2611.3,2611.0,0.55]
[1723249123535,0.1260886,2611.3,2611.1,3.82978]
[1723249123740,0.1260886,2611.3,2611.2,0.55]
[1723249123903,0.1260886,2611.3,2611.2,3.82965]
[1723249124104,0.1260886,2611.3,2611.2,1.370936]
[1723249125598,0.1260886,2611.3,2611.2,9.10682574]
[1723249125807,0.1260886,2611.3,2611.2,8.28588974]
[1723249126616,0.1260886,2611.3,2611.2,4.45623974]
[1723249126806,0.1260886,2611.3,2611.2,8.28588974]
[1723249127422,0.1260886,2611.3,2611.2,4.37965]
[1723249127733,0.1260886,2611.3,2611.2,0.55]
[1723249128137,0.1260886,2611.3,2611.2,0.987978]
[1723249128505,0.1260886,2611.3,2610.9,2.3692]
[1723249128905,0.1260886,2611.3,2610.9,6.19919]
[1723249129403,0.1260886,2611.3,2610.9,2.3692]
[1723249129834,0.1260886,2611.3,2611.2,3.82965]
[1723249130138,0.1260886,2611.3,2611.2,13.0285]
[1723249130432,0.1260886,2611.3,2611.2,14.85985]
[1723249130634,0.1260886,2611.3,2611.2,15.40985]
[1723249133546,0.1260886,2611.3,2611.1,3.82978]
[1723249133711,0.1260886,2611.3,2611.0,3.82985]
[1723249134312,0.1260886,2611.3,2610.9,2.3692]
[1723249134547,3.82967,2611.2,2610.6,6.19965]
[1723249134718,3.83004,2611.0,2610.4,3.83072]
[1723249135211,0.1260886,2611.3,2610.4,3.83072]
[1723249135411,3.83003,2611.0,2610.3,0.5285]
[1723249135645,4.213023,2611.0,2610.1,2.3692]
[1723249135867,0.1260886,2611.3,2611.2,7.6593]
[1723249136168,0.1260886,2611.3,2611.2,10.0285]
[1723249136939,0.1260886,2611.3,2611.2,10.5785]
[1723249137140,0.1260886,2611.3,2611.2,11.63635]
[1723249140868,0.1260886,2611.3,2611.2,5.4375]
[1723249141355,0.1260886,2611.3,2611.2,4.37965]
[1723249142932,0.1260886,2611.3,2611.2,4.45623429]
[1723249143366,0.1260886,2611.3,2611.2,4.37965]
[1723249143933,0.1260886,2611.3,2611.2,8.2093]
[1723249144266,0.1260886,2611.3,2611.2,4.37965]
[1723249144468,0.1260886,2611.3,2611.2,4.817615]
[1723249145269,0.1260886,2611.3,2611.2,0.55]
[1723249145495,3.9556886,2611.3,2610.8,3.83014]
[1723249145694,3.9556886,2611.3,2611.2,3.82965]
[1723249145695,0.1260886,2611.3,2611.2,3.82965]
[1723249145974,0.1260886,2611.3,2611.2,14.230515]
[1723249146892,0.1260886,2611.3,2611.2,14.780515]
[1723249148448,0.1260886,2611.3,2611.2,10.950865]
[1723249148678,0.1260886,2611.3,2611.2,8.042265]
[1723249149052,0.1260886,2611.3,2611.2,14.230515]
[1723249149282,0.1260886,2611.3,2611.2,14.89282035]
[1723249149658,0.1260886,2611.3,2611.2,14.230515]
[1723249149846,0.1260886,2611.3,2611.2,10.400865]
[1723249150049,0.1260886,2611.3,2611.2,10.950865]
[1723249151002,0.1260886,2611.3,2611.2,14.780515]
[1723249151407,0.1260886,2611.3,2611.2,17.780515]
[1723249151583,0.1260886,2611.3,2611.2,18.44273487]
[1723249151911,0.1260886,2611.3,2611.2,22.27238487]
[1723249152114,0.1260886,2611.3,2611.2,22.07163494]
[1723249152278,0.1260886,2611.3,2611.2,18.44273487]
[1723249152488,0.59995467,2613.1,2613.0,7.65402]
[1723249152690,2.4634,2613.6,2613.0,4.37691]
[1723249153003,2.4634,2613.6,2613.2,3.8267]
[1723249153183,3.82603,2613.7,2613.0,3.82692]
[1723249153366,4.46758186,2613.7,2613.0,3.82692]
[1723249153567,4.46758186,2613.7,2613.1,0.55]
[1723249154199,0.64155186,2613.7,2613.2,3.82659]
[1723249154396,10.2410486,2613.9,2613.2,3.82659]
[1723249154595,3.82609,2613.7,2613.1,0.55]
[1723249155271,3.82609,2613.7,2613.1,4.37677]
[1723249155595,3.82609,2613.7,2613.1,0.55]
[1723249155772,6.4152586,2613.9,2613.1,0.55]
[1723249155974,7.05678446,2613.9,2613.2,3.8267]
[1723249156294,3.23101446,2613.9,2613.4,3.82638]
[1723249156496,3.23101446,2613.9,2613.1,0.55]
[1723249156497,2.5894886,2613.9,2613.1,0.55]
[1723249156700,2.5894886,2613.9,2613.4,3.82631]
[1723249156895,2.5894886,2613.9,2613.6,3.82601]
[1723249157101,0.1260886,2613.9,2613.7,3.82597]
[1723249157275,0.1260886,2613.9,2613.8,3.77463105]
[1723249157534,0.1260886,2613.9,2613.8,15.09497516]
[1723249158352,0.1260886,2613.9,2613.8,18.92081516]
[1723249158529,0.1260886,2613.9,2613.8,19.30431516]
[1723249158926,0.1260886,2613.9,2613.8,15.47847516]
[1723249159128,0.1260886,2613.9,2613.8,19.30431516]
[1723249159345,0.1260886,2613.9,2613.8,15.47847516]
[1723249159547,8.6e-06,2613.9,2613.8,22.30431516]
[1723249161109,8.6e-06,2613.9,2613.8,26.13015516]
[1723249161338,8.6e-06,2613.9,2613.8,22.30431516]
[1723249161924,2.83e-06,2615.8,2615.7,3.82306]
[1723249162116,2.83e-06,2615.8,2614.9,2.4109]
[1723249162117,2.83e-06,2615.8,2615.3,3.82362]
[1723249162347,2.83e-06,2615.8,2615.4,4.39432991]
[1723249162554,2.83e-06,2615.8,2615.4,0.5]
[1723249162735,3.82317,2615.7,2614.9,3.8242]
[1723249162915,0.38231728,2615.6,2614.7,5.285]
[1723249163226,2.83e-06,2615.8,2615.1,5.285]
[1723249163428,2.83e-06,2615.8,2614.3,8.285]
[1723249163429,2.4251,2615.7,2614.9,3.82422]
[1723249163633,0.24251028,2615.6,2614.9,3.82422]
[1723249163857,4.06573028,2615.6,2614.4,5.285]
[1723249164067,0.24251028,2615.6,2614.4,9.10985]
[1723249164230,2.4251,2615.1,2614.9,3.82416]
[1723249164432,2.4251,2615.5,2614.2,3.82526]
[1723249164663,6.65505503,2615.5,2614.8,3.82427]
[1723249164826,6.24848,2615.5,2614.7,3.82448]